bitfinex/quotes_SOLUSD_20220218
["timestamp","ask_amount","ask_price","bid_price","bid_amount"]
[1645178139359,15.6674,95.81,95.752,11.61]
[1645178139562,15.6674,95.81,95.753,104.3]
[1645178139764,15.6674,95.81,95.754,5.22]
[1645178140562,15.6674,95.81,95.755,104.3]
[1645178140859,1.47005764,95.82,95.76,119.9647]
[1645178141062,1.47005764,95.821,95.76,119.9647]
[1645178141266,1.47005764,95.821,95.761,5.219]
[1645178141760,1.47005764,95.824,95.762,23.0368]
[1645178141961,1.47005764,95.827,95.763,5.219]
[1645178142161,1.47005764,95.827,95.764,44.75632601]
[1645178142461,1.47005764,95.828,95.765,5.219]
[1645178142760,1.47005764,95.829,95.765,5.219]
[1645178143964,17.13475764,95.83,95.765,5.219]
[1645178144766,1.47005764,95.828,95.765,5.219]
[1645178144964,15.665,95.82,95.765,5.219]
[1645178148767,15.665,95.82,95.766,104.3]
[1645178148971,15.6632,95.83,95.766,104.3]
[1645178149171,15.6632,95.83,95.767,2.6293831]
[1645178149371,15.6632,95.83,95.77,119.28]
[1645178149771,15.6632,95.83,95.771,2.6293831]
[1645178150170,15.6632,95.83,95.771,106.9293831]
[1645178150470,1.47005764,95.843,95.771,106.9293831]
[1645178150671,1.47005764,95.856,95.773,104.3]
[1645178151071,1.788,95.878,95.781,104.3]
[1645178151072,1.47005764,95.857,95.781,104.3]
[1645178151280,52.1952,95.89,95.791,104.3]
[1645178151281,1.47005764,95.858,95.791,104.3]
[1645178151473,1.47005764,95.863,95.793,157.12678256]
[1645178151670,15.6586,95.86,95.793,157.12678256]
[1645178152072,15.6586,95.86,95.794,2.6293831]
[1645178152470,15.6586,95.86,95.801,104.3]
[1645178152682,15.6586,95.86,95.81,14.98]
[1645178152871,15.6586,95.86,95.793,52.82678256]
[1645178153072,1.47005764,95.854,95.793,52.82678256]
[1645178153273,15.6632,95.84,95.793,52.82678256]
[1645178155372,15.6632,95.84,95.794,5.218]
[1645178156075,15.6632,95.84,95.793,68.42998256]
[1645178156575,15.6632,95.84,95.794,5.218]
[1645178156776,15.6632,95.84,95.793,68.42998256]
[1645178157574,15.6632,95.84,95.794,5.218]
[1645178160080,15.6632,95.84,95.795,104.3]
[1645178160274,1.47005764,95.855,95.797,104.3]
[1645178160474,1.47005764,95.859,95.799,104.3]
[1645178160678,1.47005764,95.86,95.799,104.3]
[1645178160876,1.47005764,95.858,95.8,5.216]
[1645178161074,1.47005764,95.858,95.796,5.216]
[1645178161274,1.47005764,95.857,95.796,5.216]
[1645178161476,1.47005764,95.856,95.796,5.216]
[1645178161677,1.47005764,95.859,95.8,15.658]
[1645178161875,15.6595,95.86,95.8,119.958]
[1645178162076,1.47005764,95.862,95.81,119.28]
[1645178162275,1.47005764,95.863,95.811,23.6039]
[1645178162475,1.47005764,95.86,95.812,104.3]
[1645178162675,1.47005764,95.86,95.814,104.3]
[1645178162874,1.47005764,95.861,95.814,104.3]
[1645178163075,1.47005764,95.862,95.815,5.216]
[1645178163477,1.47005764,95.861,95.815,5.216]
[1645178163878,1.47005764,95.861,95.815,20.7985]
[1645178164282,1.47005764,95.861,95.816,104.3]
[1645178164480,1.47005764,95.869,95.816,104.3]
[1645178164679,15.655,95.88,95.816,104.3]
[1645178164680,1.47005764,95.87,95.817,2.6293831]
[1645178164885,1.47005764,95.869,95.817,2.6293831]
[1645178165102,15.655,95.88,95.817,2.6293831]
[1645178165103,1.47005764,95.87,95.82,119.9549]
[1645178165583,1.47005764,95.87,95.82,122.5842831]
[1645178165982,1.47005764,95.869,95.82,122.5842831]
[1645178166181,1.47005764,95.87,95.82,137.5642831]
[1645178167383,1.47005764,95.871,95.82,137.5642831]
[1645178167585,1.47005764,95.873,95.82,143.3042831]
[1645178167788,1.47005764,95.875,95.82,143.3042831]
[1645178168086,1.47005764,95.88,95.82,143.3042831]
[1645178168287,1.47005764,95.88,95.831,104.3]
[1645178168488,1.47005764,95.883,95.833,104.3]
[1645178168989,1.47005764,95.884,95.834,5.216]
[1645178169189,1.47005764,95.884,95.835,24.3987]
[1645178169391,1.47005764,95.881,95.835,24.3987]
[1645178169591,1.47005764,95.881,95.836,5.215]
[1645178170592,1.47005764,95.882,95.836,5.215]
[1645178170992,1.47005764,95.881,95.836,5.215]
[1645178171793,1.47005764,95.88,95.836,5.215]
[1645178172822,1.47005764,95.882,95.836,5.215]
[1645178173021,1.47005764,95.881,95.836,5.215]
[1645178173223,1.47005764,95.882,95.836,5.215]
[1645178173423,15.6534,95.89,95.836,5.215]
[1645178173424,1.47005764,95.881,95.836,5.215]
[1645178174024,1.47005764,95.882,95.836,5.215]
[1645178174523,1.47005764,95.883,95.836,5.215]
[1645178174822,1.47005764,95.882,95.836,5.215]
[1645178175026,1.47005764,95.884,95.836,5.215]
[1645178175223,17.12525764,95.88,95.835,24.3987]
[1645178175926,1.47005764,95.879,95.835,24.3987]
[1645178176124,46.53814986,95.879,95.835,24.3987]
[1645178176324,15.6566,95.87,95.835,24.3987]
[1645178176525,15.6566,95.87,95.836,5.216]
[1645178177227,1.47005764,95.881,95.836,5.216]
[1645178177425,1.47005764,95.881,95.837,104.3]
[1645178177627,1.47005764,95.894,95.841,104.3]
[1645178178024,1.47005764,95.905,95.841,104.3]
[1645178178224,1.47005764,95.905,95.843,104.3]
[1645178178426,1.47005764,95.903,95.843,104.3]
[1645178178728,1.47005764,95.903,95.844,2.6293831]
[1645178178933,1.47005764,95.902,95.844,2.6293831]
[1645178179126,1.47005764,95.903,95.844,2.6293831]
[1645178179326,1.47005764,95.903,95.851,104.3]
[1645178179527,1.47005764,95.904,95.861,104.3]
[1645178179727,1.47005764,95.904,95.87,119.28]
[1645178179926,1.47005764,95.905,95.87,119.28]
[1645178180128,1.47005764,95.905,95.871,24.2376]
[1645178180927,1.47005764,95.906,95.871,24.2376]
[1645178181229,1.47005764,95.907,95.871,24.2376]
[1645178181628,1.47005764,95.899,95.871,24.2376]
[1645178181827,15.6488,95.92,95.871,24.2376]
[1645178181828,1.47005764,95.901,95.871,24.2376]
[1645178182229,1.47005764,95.9,95.871,24.2376]
[1645178182528,1.47005764,95.9,95.87,14.98]
[1645178182730,1.47005764,95.898,95.853,24.1539]
[1645178182928,1.47005764,95.897,95.853,24.1539]
[1645178183127,1.47005764,95.895,95.854,23.2563]
[1645178183528,1.47005764,95.894,95.855,43.57204143]
[1645178183729,1.47005764,95.894,95.854,23.2563]
[1645178184130,1.47005764,95.888,95.854,23.2563]
[1645178184430,1.47005764,95.887,95.854,23.2563]
[1645178186029,1.47005764,95.886,95.854,23.2563]
[1645178186436,1.47005764,95.884,95.854,23.2563]
[1645178186638,1.47005764,95.885,95.854,23.2563]
[1645178186834,1.47005764,95.886,95.854,23.2563]
[1645178188034,1.47005764,95.882,95.854,23.2563]
[1645178188430,1.47005764,95.879,95.854,23.2563]
[1645178188631,1.47005764,95.878,95.854,23.2563]
[1645178189536,1.47005764,95.875,95.854,23.2563]
[1645178190133,15.6535,95.89,95.854,23.2563]
[1645178190134,1.47005764,95.876,95.854,23.2563]
[1645178190333,1.47005764,95.877,95.854,23.2563]
[1645178190537,1.47005764,95.878,95.854,23.2563]
[1645178190836,1.47005764,95.884,95.854,23.2563]
[1645178191035,1.47005764,95.883,95.854,23.2563]
[1645178191233,15.6519,95.9,95.854,23.2563]
[1645178191234,1.47005764,95.884,95.854,23.2563]
[1645178191735,1.47005764,95.883,95.854,23.2563]
[1645178192836,1.47005764,95.882,95.854,23.2563]
[1645178193237,1.47005764,95.883,95.855,104.3]
[1645178193537,1.47005764,95.885,95.86,119.28]
[1645178193738,1.47005764,95.884,95.86,14.98]
[1645178193943,1.47005764,95.884,95.86,119.28]
[1645178194138,1.47005764,95.885,95.86,119.28]
[1645178194338,1.47005764,95.885,95.86,14.98]
[1645178195139,1.47005764,95.884,95.86,14.98]
[1645178196139,1.47005764,95.883,95.86,14.98]
[1645178197443,1.47005764,95.882,95.86,14.98]
[1645178198643,1.47005764,95.877,95.854,23.2563]
[1645178198866,5.93338505,95.899,95.854,23.2563]
[1645178198867,1.47005764,95.876,95.854,23.2563]
[1645178199048,1.47005764,95.874,95.854,23.2563]
[1645178199446,1.47005764,95.872,95.854,23.2563]
[1645178200447,1.47005764,95.871,95.854,23.2563]
[1645178200652,1.47005764,95.879,95.855,5.215]
[1645178200848,1.47005764,95.878,95.855,5.215]
[1645178202054,1.47005764,95.877,95.855,5.215]
[1645178203256,1.47005764,95.872,95.855,5.215]
[1645178203456,1.47005764,95.868,95.855,5.215]
[1645178203654,1.47005764,95.863,95.855,5.215]
[1645178203856,1.47005764,95.863,95.856,0.02044605]
[1645178204655,1.47005764,95.864,95.856,0.02044605]
[1645178205354,1.47005764,95.865,95.856,0.02044605]
[1645178205555,1.47005764,95.864,95.856,0.02044605]
[1645178205757,1.47005764,95.865,95.856,0.02044605]
[1645178208278,1.47005764,95.864,95.856,0.02044605]
[1645178208476,1.47005764,95.865,95.856,0.02044605]
[1645178210880,1.47005764,95.863,95.856,0.02044605]
[1645178211483,1.47005764,95.864,95.856,0.02044605]
[1645178212280,1.47005764,95.862,95.856,0.02044605]
[1645178212581,1.47005764,95.861,95.856,0.02044605]
[1645178212983,1.47005764,95.86,95.856,0.02044605]
[1645178213181,1.47005764,95.86,95.834,49.64083012]
[1645178215487,1.47005764,95.861,95.834,49.64083012]
[1645178216688,1.47005764,95.867,95.835,2.6293831]
[1645178216889,1.47005764,95.87,95.835,7.8453831]
[1645178217086,1.47005764,95.869,95.835,7.8453831]
[1645178217287,1.47005764,95.869,95.836,2.6293831]
[1645178217487,1.47005764,95.87,95.837,5.216]
[1645178217687,1.47005764,95.87,95.836,2.6293831]
[1645178217889,1.47005764,95.868,95.838,2.6293831]
[1645178218287,1.47005764,95.868,95.834,49.64083012]
[1645178218691,1.47005764,95.867,95.834,49.64083012]
[1645178218890,1.47005764,95.866,95.834,49.64083012]
[1645178219489,1.47005764,95.867,95.834,49.64083012]
[1645178219790,1.47005764,95.868,95.834,49.64083012]
[1645178219990,1.47005764,95.867,95.834,49.64083012]
[1645178220190,1.47005764,95.87,95.834,52.27021322]
[1645178220391,1.47005764,95.869,95.834,52.27021322]
[1645178220589,1.47005764,95.87,95.834,52.27021322]
[1645178220990,1.47005764,95.869,95.835,104.3]
[1645178221193,1.47005764,95.869,95.834,52.27021322]
[1645178221393,1.47005764,95.868,95.834,52.27021322]
[1645178221590,1.47005764,95.869,95.834,52.27021322]
[1645178221791,1.47005764,95.87,95.835,104.3]
[1645178222091,1.47005764,95.87,95.834,49.64083012]
[1645178222290,1.47005764,95.871,95.836,2.6293831]
[1645178222492,1.47005764,95.872,95.836,2.6293831]
[1645178222691,1.47005764,95.87,95.836,2.6293831]
[1645178223697,1.47005764,95.867,95.836,2.6293831]
[1645178223894,5.93423223,95.889,95.836,2.6293831]
[1645178223895,1.47005764,95.87,95.837,5.215]
[1645178224701,1.47005764,95.867,95.837,5.215]
[1645178224997,1.47005764,95.867,95.836,2.6293831]
[1645178225600,1.47005764,95.866,95.836,2.6293831]
[1645178225799,1.47005764,95.867,95.836,2.6293831]
[1645178226002,1.47005764,95.868,95.836,2.6293831]
[1645178226400,1.47005764,95.867,95.836,2.6293831]
[1645178227501,1.47005764,95.866,95.836,2.6293831]
[1645178227902,5.93423223,95.889,95.836,2.6293831]
[1645178227903,1.47005764,95.865,95.836,2.6293831]
[1645178229506,1.47005764,95.864,95.836,2.6293831]
[1645178229704,1.47005764,95.865,95.836,2.6293831]
[1645178231107,1.47005764,95.865,95.84,14.98]
[1645178231505,1.47005764,95.864,95.84,14.98]
[1645178232110,1.47005764,95.861,95.834,49.64083012]
[1645178232308,1.47005764,95.854,95.834,49.64083012]
[1645178232644,1.47005764,95.853,95.81,14.98]
[1645178232808,1.47005764,95.853,95.796,2.6293831]
[1645178232809,1.47005764,95.845,95.796,2.6293831]
[1645178233011,1.47005764,95.84,95.79,15.7949]
[1645178233209,1.47005764,95.837,95.79,15.7949]
[1645178233411,1.47005764,95.836,95.794,39.32919516]
[1645178233814,1.47005764,95.837,95.795,22.9145]
[1645178234009,1.47005764,95.834,95.795,22.9145]
[1645178234409,1.47005764,95.833,95.795,22.9145]
[1645178234610,1.47005764,95.834,95.795,22.9145]
[1645178235914,1.47005764,95.836,95.795,22.9145]
[1645178236813,1.47005764,95.838,95.795,22.9145]
[1645178237211,17.13155764,95.84,95.795,22.9145]
[1645178237412,15.6615,95.84,95.795,22.9145]
[1645178237614,17.13155764,95.84,95.795,22.9145]
[1645178237816,1.47005764,95.839,95.795,22.9145]
[1645178238015,15.6615,95.84,95.795,22.9145]
[1645178238414,1.47005764,95.839,95.795,22.9145]
[1645178239016,17.13155764,95.84,95.795,22.9145]
[1645178239214,15.6615,95.84,95.796,5.218]
[1645178239415,15.6615,95.84,95.795,28.1325]
[1645178247844,17.13025764,95.85,95.795,28.1325]
[1645178248045,15.6602,95.85,95.796,2.6293831]
[1645178248445,1.47005764,95.848,95.796,106.9293831]
[1645178249045,1.47005764,95.848,95.796,2.6293831]
[1645178250147,1.47005764,95.848,95.796,106.9293831]
[1645178250347,1.47005764,95.848,95.796,2.6293831]
[1645178251754,1.47005764,95.848,95.796,106.9293831]
[1645178251951,1.47005764,95.855,95.801,104.3]
[1645178252154,1.47005764,95.857,95.801,104.3]
[1645178252353,1.47005764,95.858,95.801,106.9293831]
[1645178252555,17.12845764,95.86,95.801,106.9293831]
[1645178252955,1.47005764,95.859,95.801,106.9293831]
[1645178253457,1.47005764,95.858,95.801,106.9293831]
[1645178253656,1.47005764,95.858,95.803,104.3]
[1645178253858,1.47005764,95.857,95.805,104.3]
[1645178254058,1.47005764,95.857,95.81,14.98]
[1645178254261,1.47005764,95.858,95.81,14.98]
[1645178254458,1.47005764,95.857,95.811,28.7645]
[1645178254659,1.47005764,95.857,95.811,23.5485]
[1645178255060,1.47005764,95.854,95.811,23.5485]
[1645178255963,1.47005764,95.854,95.812,106.9293831]
[1645178256161,1.47005764,95.854,95.812,112.1453831]
[1645178256360,1.47005764,95.861,95.812,112.1453831]
[1645178256763,1.47005764,95.863,95.812,112.1453831]
[1645178257161,1.47005764,95.861,95.812,112.1453831]
[1645178257860,1.47005764,95.86,95.812,112.1453831]
[1645178258261,1.47005764,95.862,95.812,112.1453831]
[1645178258462,79.4449,95.939,95.812,112.1453831]
[1645178258463,5.764e-05,95.867,95.821,104.3]
[1645178258661,5.93468742,95.9,95.831,104.3]
[1645178258960,1.789,95.893,95.831,104.3]
[1645178259162,1.789,95.902,95.833,104.3]
[1645178259466,5.93467855,95.901,95.834,50.73224159]
[1645178259960,47.96015657,95.906,95.834,50.73224159]
[1645178259961,5.93467855,95.903,95.834,50.73224159]
[1645178260162,7.72367855,95.903,95.834,66.26434159]
[1645178260361,15.6535,95.89,95.834,66.26434159]
[1645178260661,15.6535,95.89,95.835,104.3]
[1645178261061,15.6535,95.89,95.834,66.26434159]
[1645178261662,15.6535,95.89,95.835,104.3]
[1645178263965,15.6535,95.89,95.834,66.26434159]
[1645178264365,15.6535,95.89,95.835,104.3]
[1645178267570,15.6535,95.89,95.834,66.26434159]
[1645178267974,15.6535,95.89,95.834,50.73224159]
[1645178270272,15.6535,95.89,95.834,66.41554159]
[1645178273375,15.6535,95.89,95.834,50.73224159]
[1645178276080,15.6535,95.89,95.834,66.72074159]
[1645178279988,5.93494423,95.889,95.834,66.72074159]
[1645178281902,15.6551,95.88,95.834,66.72074159]
[1645178283406,15.6536,95.89,95.834,66.72074159]
[1645178283807,5.93476486,95.889,95.834,66.72074159]
[1645178285208,15.6551,95.88,95.834,66.72074159]
[1645178302136,2.94831632,95.889,95.834,66.72074159]
[1645178302337,8.88317424,95.889,95.835,104.3]
[1645178302535,5.93485792,95.889,95.834,66.72074159]
[1645178303141,8.88317424,95.889,95.834,66.72074159]
[1645178303440,5.93485792,95.889,95.834,66.72074159]
[1645178304741,15.6554,95.88,95.834,50.73224159]
[1645178305346,15.6554,95.88,95.832,24.224]
[1645178306245,15.6554,95.88,95.833,49.30818354]
[1645178308970,15.6554,95.88,95.833,54.52418354]
[1645178309270,15.6554,95.88,95.833,5.216]
[1645178309669,5.9352578,95.879,95.833,5.216]
[1645178309869,8.88357412,95.879,95.832,24.224]
[1645178310071,15.6589,95.87,95.832,24.224]
[1645178310271,53.49996744,95.869,95.812,50.49329005]
[1645178310474,53.49996744,95.869,95.813,5.216]
[1645178311070,1.788,95.878,95.814,24.233]
[1645178311273,5.93553581,95.877,95.814,24.233]
[1645178311471,15.659,95.86,95.814,24.233]
[1645178318581,1.788,95.859,95.814,24.233]
[1645178318782,15.6609,95.85,95.814,24.233]
[1645178326290,52.2039,95.87,95.814,24.233]
[1645178326491,15.6585,95.86,95.815,5.216]
[1645178326791,43.95463384,95.877,95.816,104.3]
[1645178326992,43.95463384,95.877,95.82,14.98]
[1645178327193,43.95463384,95.877,95.821,5.216]
[1645178327794,15.6567,95.87,95.821,5.216]
[1645178329092,15.6567,95.87,95.82,14.98]
[1645178331998,15.6567,95.87,95.821,5.216]
[1645178333406,15.6567,95.87,95.82,14.98]
[1645178337122,1.782,95.869,95.82,14.98]
[1645178337321,15.6582,95.86,95.82,14.98]
[1645178339424,15.6582,95.86,95.814,24.233]
[1645178340426,15.6582,95.86,95.815,104.3]
[1645178340623,15.6568,95.87,95.815,104.3]
[1645178340823,15.6568,95.87,95.817,104.3]
[1645178341028,15.6568,95.87,95.817,110.23]
[1645178341729,15.6568,95.87,95.82,14.98]
[1645178350145,15.6568,95.87,95.815,5.216]
[1645178350344,7.72447027,95.869,95.814,24.233]
[1645178350545,15.6613,95.86,95.814,24.233]
[1645178351944,15.52234473,95.86,95.814,24.233]
[1645178352144,15.52234473,95.86,95.815,5.216]
[1645178354748,15.52234473,95.86,95.814,24.233]
[1645178363580,1.788,95.859,95.791,5.216]
[1645178363784,15.6637,95.84,95.791,5.216]
[1645178363979,15.6637,95.84,95.794,23.5856]
[1645178364479,51.8089406,95.839,95.795,54.89441643]
[1645178364679,52.2121,95.86,95.795,54.89441643]
[1645178364883,1.788,95.859,95.795,54.89441643]
[1645178365079,7.72489696,95.859,95.795,54.89441643]
[1645178365479,5.93689696,95.858,95.795,54.89441643]
[1645178365680,45.07740505,95.857,95.795,54.89441643]
[1645178366381,15.664,95.83,95.795,54.89441643]
[1645178377198,15.664,95.83,95.796,5.218]
[1645178378497,15.664,95.83,95.795,54.89441643]
[1645178386201,17.14189572,95.83,95.795,54.89441643]
[1645178386801,1.47789572,95.829,95.795,54.89441643]
[1645178387003,17.14189572,95.83,95.795,54.89441643]
[1645178387203,1.47789572,95.829,95.795,54.89441643]
[1645178388206,17.14189572,95.83,95.795,54.89441643]
[1645178388805,1.47789572,95.829,95.795,54.89441643]
[1645178389013,17.14189572,95.83,95.795,54.89441643]
[1645178389405,1.47789572,95.829,95.795,54.89441643]
[1645178390604,17.14189572,95.83,95.795,54.89441643]
[1645178391503,1.47789572,95.829,95.795,54.89441643]
[1645178391704,1.47789572,95.828,95.795,54.89441643]
[1645178392706,1.47789572,95.827,95.795,54.89441643]
[1645178393705,1.47789572,95.826,95.795,54.89441643]
[1645178395910,1.47789572,95.825,95.795,54.89441643]
[1645178396107,1.47789572,95.826,95.795,54.89441643]
[1645178397811,1.47789572,95.826,95.794,23.5856]
[1645178400014,1.47789572,95.825,95.794,23.5856]
[1645178400714,1.47789572,95.826,95.794,23.5856]
[1645178401714,1.47789572,95.832,95.794,23.5856]
[1645178401914,44.19016102,95.834,95.795,5.218]
[1645178404622,1.47789572,95.837,95.795,5.218]
[1645178405229,15.6634,95.83,95.795,5.218]
[1645178405426,15.6634,95.83,95.794,23.5856]
[1645178405625,1.47789572,95.829,95.794,23.5856]
[1645178405827,1.47789572,95.826,95.794,23.5856]
[1645178406026,1.788,95.855,95.794,23.5856]
[1645178406027,1.47789572,95.827,95.794,23.5856]
[1645178406626,48.52419792,95.826,95.794,23.5856]
[1645178407528,15.6656,95.82,95.794,23.5856]
[1645178411543,17.14349572,95.82,95.794,23.5856]
[1645178411739,17.14349572,95.82,95.771,5.218]
[1645178411943,1.47789572,95.818,95.77,14.98]
[1645178412141,1.47789572,95.819,95.77,14.98]
[1645178412341,15.6665,95.81,95.77,14.98]
[1645178413145,15.6665,95.81,95.771,24.3865]
[1645178413944,15.6695,95.8,95.771,24.3865]
[1645178428169,15.6695,95.8,95.76,24.9741]
[1645178433178,15.6695,95.8,95.761,54.81701216]
[1645178435594,15.6695,95.8,95.762,5.22]
[1645178437296,15.6695,95.8,95.761,54.81701216]
[1645178438297,15.6695,95.8,95.762,5.22]
[1645178439298,15.6695,95.8,95.761,54.81701216]
[1645178439704,15.6695,95.8,95.762,5.22]
[1645178441499,1.47789572,95.806,95.762,5.22]
[1645178441702,15.6667,95.81,95.762,5.22]
[1645178441900,15.6667,95.81,95.762,20.8736]
[1645178442102,15.6667,95.81,95.763,104.3]
[1645178442402,15.6667,95.81,95.762,20.8736]
[1645178442403,1.47789572,95.816,95.765,104.3]
[1645178442803,1.47789572,95.816,95.767,104.3]
[1645178443202,1.47789572,95.816,95.768,5.219]
[1645178443605,1.47789572,95.819,95.768,5.219]
[1645178443802,1.47789572,95.817,95.768,5.219]
[1645178444005,1.47789572,95.818,95.77,14.98]
[1645178444203,1.47789572,95.818,95.771,28.1581]
[1645178444804,1.47789572,95.815,95.771,28.1581]
[1645178445007,15.6651,95.82,95.771,28.1581]
[1645178445008,1.47789572,95.816,95.771,22.9391]
[1645178446505,1.47789572,95.813,95.771,22.9391]
[1645178447508,1.47789572,95.814,95.771,22.9391]
[1645178447706,1.47789572,95.814,95.772,5.219]
[1645178449209,15.6664,95.81,95.772,5.219]
[1645178450109,17.14429572,95.81,95.771,22.9391]
[1645178450715,15.6664,95.81,95.771,22.9391]
[1645178453712,15.6664,95.81,95.772,5.219]
[1645178454213,1.47789572,95.819,95.772,5.219]
[1645178455415,1.47789572,95.822,95.772,5.219]
[1645178455615,1.47789572,95.823,95.772,5.219]
[1645178456019,1.47789572,95.822,95.772,5.219]
[1645178456217,1.47789572,95.821,95.771,22.9391]
[1645178456417,1.47789572,95.82,95.772,5.219]
[1645178456617,1.47789572,95.821,95.772,5.219]
[1645178456822,1.47789572,95.822,95.772,5.219]
[1645178457123,1.47789572,95.823,95.772,5.219]
[1645178457323,15.6648,95.82,95.772,5.219]
[1645178457623,17.14269572,95.82,95.771,22.9391]
[1645178459024,1.47789572,95.819,95.771,22.9391]
[1645178459826,1.47789572,95.818,95.771,22.9391]
[1645178462448,1.47789572,95.818,95.772,104.3]
[1645178463053,1.47789572,95.819,95.772,104.3]
[1645178463349,1.47789572,95.82,95.772,104.3]
[1645178463551,1.47789572,95.82,95.774,104.3]
[1645178463750,1.47789572,95.826,95.776,104.3]
[1645178463952,1.47789572,95.827,95.776,104.3]
[1645178464151,1.47789572,95.827,95.777,109.519]
[1645178464351,1.47789572,95.827,95.777,104.3]
[1645178464552,1.47789572,95.827,95.778,5.219]
[1645178464953,1.47789572,95.828,95.778,5.219]
[1645178465354,1.47789572,95.827,95.778,5.219]
[1645178465559,1.47789572,95.829,95.778,5.219]
[1645178465755,1.47789572,95.828,95.778,5.219]
[1645178466155,1.47789572,95.829,95.778,5.219]
[1645178466557,1.47789572,95.828,95.778,5.219]
[1645178466856,1.47789572,95.829,95.778,5.219]
[1645178467357,1.47789572,95.834,95.778,5.219]
[1645178467657,1.47789572,95.83,95.778,5.219]
[1645178467856,1.47789572,95.829,95.778,5.219]
[1645178468459,1.47789572,95.828,95.778,5.219]
[1645178469060,1.47789572,95.829,95.778,5.219]
[1645178469261,1.47789572,95.829,95.772,109.518]
[1645178470061,1.47789572,95.83,95.772,109.518]
[1645178471162,1.47789572,95.831,95.772,109.518]
[1645178471362,1.47789572,95.828,95.772,109.518]
[1645178472863,18.97329572,95.83,95.772,109.518]
[1645178473264,17.4954,95.83,95.772,109.518]
[1645178476068,1.832,95.83,95.773,2.6293831]
[1645178476266,1.47789572,95.834,95.775,104.3]
[1645178476465,1.47789572,95.835,95.777,104.3]
[1645178476666,1.47789572,95.836,95.777,104.3]
[1645178476866,1.47789572,95.837,95.779,104.3]
[1645178477069,1.47789572,95.838,95.781,104.3]
[1645178477265,1.47789572,95.839,95.781,104.3]
[1645178477466,1.47789572,95.839,95.783,104.3]
[1645178477666,1.47789572,95.843,95.785,104.3]
[1645178478267,1.47789572,95.848,95.786,2.6293831]
[1645178478466,1.47789572,95.848,95.787,104.3]
[1645178478868,1.47789572,95.848,95.788,2.6293831]
[1645178479071,1.47789572,95.848,95.791,104.3]
[1645178479269,1.47789572,95.85,95.793,104.3]
[1645178479468,1.47789572,95.852,95.793,104.3]
[1645178479670,1.47789572,95.854,95.794,5.216]
[1645178479870,1.47789572,95.854,95.795,104.3]
[1645178480068,1.47789572,95.853,95.795,106.9293831]
[1645178480268,1.47789572,95.853,95.8,15.6572]
[1645178480469,1.47789572,95.856,95.801,133.3843]
[1645178480671,0.0001,95.864,95.801,133.3843]
[1645178480868,1.47789572,95.892,95.821,104.3]
[1645178481071,1.47789572,95.895,95.831,104.3]
[1645178481271,1.47789572,95.898,95.841,104.3]
[1645178481470,1.47789572,95.899,95.852,104.3]
[1645178481668,1.47789572,95.906,95.851,46.59683753]
[1645178481868,1.47789572,95.906,95.853,2.6293831]
[1645178482068,1.47789572,95.901,95.853,2.6293831]
[1645178482270,1.47789572,95.904,95.854,24.3709]
[1645178482769,1.47789572,95.908,95.855,104.3]
[1645178482972,53.44694892,95.911,95.86,14.98]
[1645178482973,1.47789572,95.905,95.86,14.98]
[1645178483472,1.47789572,95.903,95.86,14.98]
[1645178483875,1.47789572,95.904,95.86,14.98]
[1645178484071,1.47789572,95.903,95.86,14.98]
[1645178484472,15.652,95.9,95.86,14.98]
[1645178492089,15.652,95.9,95.837,5.214]
[1645178492284,1.47789572,95.894,95.82,14.98]
[1645178492482,15.6583,95.88,95.82,14.98]
[1645178492682,15.6583,95.88,95.821,24.5705]
[1645178493082,45.97463137,95.879,95.822,40.37797891]
[1645178494482,15.6589,95.87,95.822,40.37797891]
[1645178496785,15.6589,95.87,95.822,45.59397891]
[1645178497084,15.6589,95.87,95.822,40.37797891]
[1645178497484,15.6589,95.87,95.823,5.216]
[1645178498885,15.6589,95.87,95.822,45.59397891]
[1645178500286,15.6589,95.87,95.822,40.37797891]
[1645178504788,15.6589,95.87,95.821,24.5705]